fUST/lending_fUST_20260315
["ID","MTS","AMOUNT","RATE_DAILY","PERIOD"]
[408382377,1773534647295,-719.19,0.00012329,2]
[408382379,1773534647304,-599.33,0.00012329,2]
[408382381,1773534647314,-499.44,0.00012329,2]
[408382383,1773534647323,-416.2,0.00012329,2]
[408382385,1773534647339,-346.83,0.00012329,2]
[408382387,1773534647360,-289.03,0.00012329,2]
[408382389,1773534647369,-240.86,0.00012329,2]
[408382391,1773534647379,-200.71,0.00012329,2]
[408382393,1773534647389,-167.26,0.00012329,2]
[408382395,1773534647398,-836.33,0.00012329,2]
[408382397,1773534647408,-151.0,0.00012329,2]
[408382400,1773534647418,-151.0,0.00012329,2]
[408382402,1773534647428,-1500.0,0.00012332,2]
[408382404,1773534647437,-1500.0,0.00012332,2]
[408382406,1773534647446,-1500.0,0.00012355,2]
[408382408,1773534647456,-4429.41699143,0.00012475,2]
[408382410,1773534647465,-877.8738289,0.00012638,2]
[408382411,1773534647474,-2000.0,0.00012652,2]
[408382414,1773534647483,-2000.0,0.00012656,2]
[408382415,1773534647493,-500.0,0.00012656,2]
[408382418,1773534647503,-1000.90459809,0.00012668,2]
[408382420,1773534647512,-151.0,0.000127,2]
[408382422,1773534647522,-1668.71768779,0.00012769,2]
[408382424,1773534647531,-151.0,0.000128,2]
[408382426,1773534647540,-151.0,0.000128,2]
[408382428,1773534647551,-2000.0,0.0001285,2]
[408382430,1773534647560,-2000.0,0.0001285,2]
[408382432,1773534647570,-2000.0,0.0001285,2]
[408382434,1773534647580,-2000.0,0.0001288,2]
[408382436,1773534647589,-2000.0,0.0001288,2]
[408382438,1773534647605,-8903.425737,0.000129,2]
[408382440,1773534647624,-2000.0,0.00012903,2]
[408382442,1773534647634,-500.0,0.0001302,2]
[408382444,1773534647644,-500.0,0.00013199,2]
[408382446,1773534647654,-2500.0,0.00013204,2]
[408382448,1773534647664,-641.0,0.00013298,2]
[408382450,1773534647673,-2500.0,0.00013398,2]
[408382452,1773534647683,-2125.65283609,0.00013398,2]
[408382750,1773534681652,-1293.78072354,9.531e-05,2]
[408382918,1773535594126,-863.65224248,7.726e-05,2]
[408382933,1773535802983,183.11,2e-05,2]
[408382949,1773535832203,-5000.0,2.178e-05,2]
[408382951,1773535832212,-57.1,2.2e-05,2]
[408382955,1773535832257,-126.01,2.2e-05,2]
[408382957,1773535832267,-532.05644971,7.348e-05,2]
[408383299,1773535838370,-188.88072702,7.348e-05,2]
[408383301,1773535838380,-524.0,7.348e-05,2]
[408383303,1773535838390,-5000.0,7.422e-05,2]
[408383305,1773535838400,-300.0,7.496e-05,2]
[408383307,1773535838410,-853.69312611,7.646e-05,2]
[408383309,1773535838426,-346.30687389,7.646e-05,2]
[408383311,1773535838435,-300.0,7.647e-05,2]
[408383313,1773535838446,-300.0,7.647e-05,2]
[408383316,1773535838456,-118.69312614,7.647e-05,2]
[408383318,1773535838467,-181.30687386,7.647e-05,2]
[408383320,1773535838476,-420.0,8.246e-05,2]
[408383321,1773535838486,-1680.0,8.411e-05,2]
[408383323,1773535838495,-420.0,8.412e-05,2]
[408383325,1773535838504,-420.0,8.412e-05,2]
[408383328,1773535838519,-209.06700247,8.717e-05,2]
[408383329,1773535838530,-969.0,9.252e-05,2]
[408383332,1773535838540,-587.0,9.253e-05,2]
[408383333,1773535838551,-768.47894619,9.615e-05,2]
[408383336,1773535838562,-283.61,9.615e-05,2]
[408383338,1773535838573,-897.62068611,9.615e-05,2]
[408383340,1773535838585,-215.35705974,9.906e-05,2]
[408383590,1773535840896,-34.64294026,9.906e-05,2]
[408383592,1773535840906,-236.0,0.00010178,2]
[408383594,1773535840915,-281.0,0.00011,2]
[408383596,1773535840925,-640.0,0.00012026,2]
[408383598,1773535840934,-1394.0,0.00012026,2]
[408383600,1773535840943,-570.67405812,0.00012026,2]
[408383772,1773535843410,-1625.32594188,0.00012026,2]
[408383773,1773535843421,-150.0,0.00012026,2]
[408383774,1773535843431,-150.0,0.00012026,2]
[408383775,1773535843445,-979.98614976,0.00012087,2]
[408383776,1773535843455,-219.4684572,0.00012597,2]
[408383777,1773535843464,-174.63238898,0.00012723,2]
[408383778,1773535843474,-197.51195995,0.00013461,2]
[408383779,1773535843483,-1176.485132,0.0001348,2]
[408383780,1773535843495,-260.25105311,0.00013482,2]
[408383781,1773535843505,-194.5,0.00013698,2]
[408383784,1773535843774,-219.33444687,0.00013698,2]
[408383785,1773535843785,-500.0,0.00013698,2]
[408383786,1773535843795,-500.0,0.00013698,2]
[408383787,1773535843806,-500.0,0.00013698,2]
[408383788,1773535843815,-500.0,0.00013698,2]
[408383789,1773535843825,-500.0,0.00013698,2]
[408383790,1773535843836,-500.0,0.00013698,2]
[408383791,1773535843846,-500.0,0.00013698,2]
[408383792,1773535843856,-500.0,0.00013698,2]
[408383793,1773535843866,-500.0,0.00013698,2]
[408383794,1773535843877,-500.0,0.00013698,2]
[408383795,1773535843887,-500.0,0.00013698,2]
[408383796,1773535843897,-500.0,0.00013698,2]
[408383797,1773535843907,-500.0,0.00013698,2]
[408383798,1773535843917,-500.0,0.00013698,2]
[408383799,1773535843926,-500.0,0.00013698,2]
[408383800,1773535843936,-500.0,0.00013698,2]
[408383801,1773535843945,-500.0,0.00013698,2]
[408383802,1773535843955,-441.41689419,0.00013698,2]
[408383803,1773535843964,-1000.0,0.00013699,2]
[408383804,1773535843974,-498.018765,0.00013699,2]
[408383805,1773535843983,-1000.0,0.00013699,2]
[408383806,1773535843993,-1500.0,0.00013699,2]
[408383807,1773535844002,-1500.0,0.00013699,2]
[408383808,1773535844013,-151.0,0.000137,2]
[408383809,1773535844022,-151.0,0.000137,2]
[408383810,1773535844031,-303.461,0.00013878,2]
[408383811,1773535844042,-355.71046867,0.00013889,2]
[408383812,1773535844053,-1176.485132,0.00014047,2]
[408383813,1773535844063,-640.2788436,0.00014104,2]
[408383814,1773535844073,-159.18970006,0.00014186,2]
[408383815,1773535844082,-181.63138678,0.00014191,2]
[408383816,1773535844092,-5000.0,0.00014504,2]
[408383817,1773535844101,-9006.5631,0.00014504,2]
[408383818,1773535844110,-219.4684572,0.00014512,2]
[408383819,1773535844120,-151.0,0.000146,2]
[408383820,1773535844130,-151.0,0.000146,2]
[408383821,1773535844139,-1176.485132,0.00014615,2]
[408383822,1773535844149,-159.18970006,0.00014625,2]
[408383823,1773535844159,-5000.0,0.00014649,2]
[408383824,1773535844168,-5000.0,0.00014794,2]
[408383825,1773535844178,-500.0,0.00014885,2]
[408383826,1773535844188,-500.0,0.00014885,2]
[408383827,1773535844197,-305.18332467,0.000149,2]
[408383828,1773535844207,-500.0,0.00014903,2]
[408383829,1773535844216,-468.23215198,0.00014938,7]
[408383830,1773535844225,-1006.36308968,0.00015,7]
[408383831,1773535844234,-270.83333333,0.00015,2]
[408383832,1773535844244,-640.0,0.00015026,2]
[408383833,1773535844253,-1394.0,0.00015026,2]
[408383834,1773535844262,-2196.0,0.00015026,2]
[408383835,1773535844272,-246.714442,0.00015068,2]
[408383836,1773535844281,-355.16600638,0.00015127,2]
[408383837,1773535844291,-1176.485132,0.00015182,2]
[408383838,1773535844301,-314.02396187,0.00015185,2]
[408383839,1773535844310,-354.00404474,0.00015199,2]
[408383840,1773535844320,-183.27568209,0.00015199,2]
[408383841,1773535844330,-500.0,0.000152,2]
[408383842,1773535844340,-500.0,0.000152,2]
[408383843,1773535844350,-500.0,0.000152,2]
[408383844,1773535844359,-500.0,0.000152,2]
[408383845,1773535844369,-500.0,0.000152,2]
[408383846,1773535844378,-500.0,0.000152,2]
[408383847,1773535844387,-500.0,0.000152,2]
[408383848,1773535844396,-500.0,0.000152,2]
[408383849,1773535844406,-500.0,0.000152,2]
[408383850,1773535844416,-721.66745584,0.000152,2]
[408383851,1773535844425,-500.0,0.000152,2]
[408383852,1773535844435,-500.0,0.000152,2]
[408383853,1773535844445,-500.0,0.000152,2]
[408383854,1773535844455,-500.0,0.000152,2]
[408383855,1773535844465,-500.0,0.000152,2]
[408383856,1773535844474,-500.0,0.000152,2]
[408383857,1773535844485,-500.0,0.000152,2]
[408383858,1773535844495,-500.0,0.000152,2]
[408383859,1773535844505,-500.0,0.000152,2]
[408383860,1773535844518,-500.0,0.000152,2]
[408383861,1773535844529,-500.0,0.000152,2]
[408383862,1773535844538,-500.0,0.000152,2]
[408383863,1773535844548,-500.0,0.000152,2]
[408383864,1773535844558,-500.0,0.000152,2]
[408383865,1773535844567,-505.87964409,0.000152,2]
[408383866,1773535844581,-500.0,0.000152,2]
[408383867,1773535844592,-500.0,0.000152,2]
[408383868,1773535844602,-500.0,0.000152,2]
[408383869,1773535844612,-500.0,0.000152,2]
[408383870,1773535844622,-500.0,0.000152,2]
[408383871,1773535844631,-500.0,0.000152,2]
[408383872,1773535844642,-900.0,0.000152,2]
[408383873,1773535844651,-500.0,0.000152,2]
[408383874,1773535844660,-500.0,0.000152,2]
[408383875,1773535844669,-500.0,0.000152,2]
[408383876,1773535844678,-500.0,0.000152,2]
[408383877,1773535844688,-577.56215505,0.000152,2]
[408383878,1773535844697,-500.0,0.00015333,2]
[408383879,1773535844707,-500.0,0.00015333,2]
[408383880,1773535844718,-500.0,0.00015333,2]
[408383881,1773535844729,-388.81119514,0.00015333,2]
[408383882,1773535844761,-111.18880486,0.00015333,2]
[408383883,1773535844771,-500.0,0.00015333,2]
[408383884,1773535844781,-403.97180996,0.00015338,2]
[408383885,1773535844791,-500.0,0.00015355,2]
[408383886,1773535844800,-1000.0,0.00015433,2]
[408383887,1773535844811,-356.19324218,0.00015451,2]
[408383888,1773535844821,-2133.31398954,0.00015465,2]
[408383889,1773535844832,-2846.16205487,0.00015465,2]
[408383890,1773535844842,-151.0,0.000155,2]
[408383891,1773535844851,-151.0,0.000155,2]
[408383892,1773535844861,-500.0,0.00015566,2]
[408383893,1773535844870,-500.0,0.00015566,2]
[408383894,1773535844879,-180.0,0.00015664,2]
[408383895,1773535844888,-1176.485132,0.0001575,2]
[408383896,1773535844898,-226.70877458,0.00015796,2]
[408383897,1773535844909,-1000.0,0.00015881,2]
[408383898,1773535844919,-1000.0,0.00015881,2]
[408383899,1773535844929,-1000.0,0.00015881,2]
[408383900,1773535844938,-315.62703881,0.00015881,2]
[408383901,1773535844949,-684.37296119,0.00015881,2]
[408383902,1773535844958,-1000.0,0.00015903,2]
[408383903,1773535844967,-385.58073022,0.00015923,2]
[408383904,1773535844976,-800.0,0.00015936,4]
[408383905,1773535844985,-1000.0,0.00015981,2]
[408383906,1773535844995,-150.0,0.00016,2]
[408383907,1773535845004,-1000.0,0.00016114,2]
[408383908,1773535845013,-1000.0,0.00016114,2]
[408383909,1773535845024,-1000.0,0.00016314,5]
[408383910,1773535845033,-1176.485132,0.00016317,2]
[408383911,1773535845043,-151.0,0.000164,2]
[408383912,1773535845053,-151.0,0.000164,2]
[408383913,1773535845062,-219.4684572,0.00016427,2]
[408383914,1773535845071,-1500.0,0.00016429,2]
[408383915,1773535845080,-1220.13419402,0.00016429,2]
[408383916,1773535845090,-942.93979791,0.00016429,2]
[408383917,1773535845100,-1500.0,0.00016429,2]
[408383918,1773535845109,-1925.0,0.00016438,2]
[408383919,1773535845118,-5000.0,0.00016438,2]
[408383920,1773535845127,-1000.0,0.00016438,2]
[408383921,1773535845137,-151.0,0.00016438,2]
[408383922,1773535845148,-151.0,0.00016438,2]
[408383923,1773535845158,-151.0,0.00016438,2]
[408383924,1773535845167,-151.0,0.00016438,2]
[408383925,1773535845176,-697.48361718,0.00016451,2]
[408383926,1773535845186,-186.6634186,0.00016552,2]
[408383927,1773535845195,-186.224006,0.00016653,2]
[408383928,1773535845206,-1413.99312123,0.00016662,2]
[408383929,1773535845298,-86.00687877,0.00016662,2]
[408383930,1773535845309,-9.9544815,0.00016662,2]
[408383931,1773535845321,-1490.0455185,0.00016662,2]
[408383932,1773535845332,-3568.9544815,0.00016731,2]
[408383933,1773535845344,-1826.03086402,0.00016731,2]
[408383934,1773535845357,-639.54173987,0.00016731,2]
[408383935,1773535845368,-506.08378009,0.00016731,2]
[408383949,1773535846415,-150.572,0.00012026,2]
[408383950,1773535846426,-150.0,0.00015026,2]
[408383951,1773535846436,-71979.66222515,0.00016731,2]
[408383952,1773535846638,-1154.38,0.00016731,2]
[408384037,1773536481314,-748.28795945,9.799e-05,2]
[408384085,1773536807124,-3652.34632465,9.319e-05,2]
[408384184,1773537032402,-500.82288191,8.952e-05,2]
[408384190,1773537032456,-699.17711809,8.952e-05,2]
[408384193,1773537032466,-5000.0,8.953e-05,2]
[408384195,1773537032477,-545.0,8.953e-05,2]
[408384197,1773537032486,-3339.30210566,9.043e-05,2]
[408384199,1773537032502,-1660.69789434,9.043e-05,2]
[408384201,1773537032512,-748.28795945,9.134e-05,2]
[408384203,1773537032522,-134.89748005,9.225e-05,2]
[408384416,1773537038575,-321.19101411,8.852e-05,2]
[408384418,1773537038586,-165.10251995,9.225e-05,2]
[408384420,1773537038596,-300.0,9.225e-05,2]
[408384422,1773537038607,-231.0,9.847e-05,2]
[408384424,1773537038617,-453.22688,9.998e-05,2]
[408384426,1773537038627,-300.0,0.00010148,2]
[408384428,1773537038637,-500.0,0.00010161,2]
[408384429,1773537038647,-247.94838146,0.00010161,2]
[408384431,1773537038657,-500.0,0.00010989,2]
[408384433,1773537038667,-4017.58883857,0.00011077,2]
[408384435,1773537038676,-7978.22639512,0.00011177,2]
[408384437,1773537038692,-8546.67007136,0.00011377,2]
[408384439,1773537038704,-1302.85212884,0.00011377,2]
[408384441,1773537038714,-160.47453369,0.00011477,2]
[408384443,1773537038726,-699.48355175,0.00011477,2]
[408384472,1773537043732,-5000.0,8.764e-05,2]
[408384474,1773537043741,-7872.08577787,0.00011477,2]
[408384476,1773537043753,-1177.20831356,0.00011477,2]
[408384478,1773537043762,-10874.76506777,0.00011577,2]
[408384480,1773537043771,-250.22044442,0.00011949,2]
[408384482,1773537043780,-3069.49874061,0.00012055,2]
[408384485,1773537043802,-405.8162583,0.00012055,2]
[408384751,1773537046659,-3537.00304111,0.00012055,2]
[408384763,1773537046824,-8368.05555998,0.00012055,2]
[408384764,1773537046834,-250.0,0.00012359,2]
[408384765,1773537046843,-266.218,0.00012359,2]
[408384766,1773537046852,-640.0,0.00012375,2]
[408384767,1773537046861,-2196.0,0.00012375,2]
[408384768,1773537046870,-1394.0,0.00012375,2]
[408384769,1773537046879,-10748.51540058,0.000125,2]
[408385092,1773538231684,-5000.0,9.086e-05,2]
[408385094,1773538231694,-547.0,9.086e-05,2]
[408385096,1773538231704,-553.21109881,9.178e-05,2]
[408385098,1773538231713,-2468.35524233,9.271e-05,2]
[408385099,1773538231723,-944.0,9.364e-05,2]
[408385101,1773538231732,-300.0,9.999e-05,2]
[408385103,1773538231742,-300.0,9.999e-05,2]
[408385105,1773538231752,-300.0,9.999e-05,2]
[408385106,1773538231761,-1506.73933994,0.0001,2]
[408385107,1773538231771,-964.47555865,0.00010448,2]
[408385108,1773538231783,-542.26378129,0.00010448,2]
[408385109,1773538231793,-620.81837267,0.00010895,2]
[408385110,1773538231804,-781.9606003,0.00010895,2]
[408385131,1773538237889,-103.96036697,0.00010895,2]
[408385132,1773538237899,-420.0,0.00010999,2]
[408385133,1773538237909,-1880.0763999,0.00011289,2]
[408385134,1773538237920,-1506.73933994,0.00011343,7]
[408385135,1773538237930,-255.9451752,0.0001149,2]
[408385136,1773538237940,-1506.73933994,0.0001179,7]
[408385137,1773538237950,-522.0,0.00012099,2]
[408385138,1773538237961,-2438.0103124,0.00012164,2]
[408385139,1773538237971,-1506.73933994,0.00012238,7]
[408385140,1773538237980,-3611.48561619,0.00012306,2]
[408385141,1773538237990,-622.76214771,0.000125,2]
[408385142,1773538238002,-358.99959156,0.000125,2]
[408385143,1773538238012,-285.001,0.00012645,2]
[408385144,1773538238022,-4393.00462666,0.00012685,2]
[408385145,1773538238039,-580.56853161,0.00012685,2]
[408385148,1773538240312,-3428.4456557,0.00012685,2]
[408385150,1773538240324,-495.840245,0.00012685,2]
[408385151,1773538240421,-341.44406342,0.00012685,2]
[408385174,1773538243369,-760.69687761,0.00012685,2]
[408385175,1773538243378,-559.20391451,0.00012686,7]
[408385176,1773538243389,-488.98944803,0.00012686,7]
[408385179,1773538245965,-5000.0,0.00012519,2]
[408385180,1773538245974,-1395.0,0.00012645,2]
[408385181,1773538245983,-458.5459774,0.00012686,7]
[408385182,1773538245992,-982.76788806,0.000129,2]
[408385183,1773538246001,-219.4684575,0.00013634,2]
[408385184,1773538246010,-506.74062512,0.00013699,2]
[408385185,1773538246090,-493.25937488,0.00013699,2]
[408385186,1773538246100,-249.009382,0.00013699,2]
[408385187,1773538246111,-467.52742716,0.00013699,2]
[408385192,1773538300577,-2197.12538653,0.0001014,2]
[408385378,1773539431722,-1098.84062762,8.549e-05,2]
[408385379,1773539431777,-773.62206646,8.549e-05,2]
[408385415,1773539437961,-3127.53730592,8.549e-05,2]
[408385416,1773539437971,-142.48517896,8.635e-05,2]
[408385417,1773539438015,-1104.170928,8.635e-05,2]
[408385697,1773539443131,-2881.34882359,8.464e-05,2]
[408385699,1773539443142,-3753.34389304,8.635e-05,2]
[408385701,1773539443152,-542.0,8.722e-05,2]
[408385703,1773539443163,-1200.0,8.897e-05,2]
[408385705,1773539443175,-263.0,8.898e-05,2]
[408385707,1773539443187,-300.0,8.898e-05,2]
[408385709,1773539443198,-215.0,8.898e-05,2]
[408385711,1773539443211,-5076.47921244,0.0001014,2]
[408385713,1773539443220,-975.01067129,0.00010221,2]
[408385716,1773539443231,-1889.16772412,0.00010321,2]
[408385717,1773539443243,-2138.28492987,0.00010421,2]
[408385720,1773539443253,-275.155,0.00010421,2]
[408385721,1773539443263,-1155.58852755,0.0001045,2]
[408385724,1773539443278,-1107.9990059,0.0001045,2]
[408385997,1773539446018,-5000.0,8.379e-05,2]
[408385999,1773539446028,-2749.43166711,0.0001045,2]
[408386001,1773539446038,-159.0,0.000105,2]
[408386003,1773539446047,-2288.48168939,0.00010521,2]
[408386005,1773539446056,-2438.67844903,0.00010621,2]
[408386007,1773539446066,-2588.87520867,0.00011435,2]
[408386009,1773539446076,-159.0,0.000115,2]
[408386010,1773539446085,-500.0,0.00011867,2]
[408386012,1773539446094,-160.0,0.000119,2]
[408386015,1773539446103,-159.0,0.000119,2]
[408386017,1773539446114,-159.0,0.000119,2]
[408386019,1773539446123,-1128.6941396,0.00012055,2]
[408386020,1773539446133,-645.26677799,0.00012415,2]
[408386023,1773539446142,-160.0,0.000126,2]
[408386059,1773539446472,-2739.07196831,0.00012722,2]
[408386061,1773539446483,-860.96503992,0.000129,2]
[408386063,1773539446492,-4.81534666,0.000129,2]
[408386065,1773539446503,-856.14969321,0.000129,2]
[408386067,1773539446513,-762.735,0.00013061,2]
[408386069,1773539446522,-1024.374,0.00013061,2]
[408386071,1773539446531,-150.72,0.00013061,2]
[408386073,1773539446540,-734.0,0.00013061,2]
[408386075,1773539446549,-183.0,0.00013061,2]
[408386077,1773539446559,-437.0,0.00013061,2]
[408386079,1773539446568,-159.0,0.000136,3]
[408386081,1773539446577,-159.0,0.000136,3]
[408386083,1773539446586,-156.0,0.00013699,2]
[408386086,1773539446597,-1000.0,0.00013699,2]
[408386088,1773539446607,-501.55073217,0.000137,2]
[408386090,1773539446616,-500.0,0.00013925,2]
[408386092,1773539446625,-609.7347961,0.00013925,2]
[408386094,1773539446634,-2803.32477696,0.00014009,2]
[408386096,1773539446644,-324.6985643,0.00014188,2]
[408386098,1773539446653,-544.8859493,0.00014367,2]
[408386773,1773540574107,-2924.3404292,4.334e-05,2]
[408386774,1773540574133,-2231.48373917,4.378e-05,2]
[408386803,1773540631896,-1966.11974943,4.467e-05,2]
[408386809,1773540631952,-819.84330871,4.467e-05,2]
[408386812,1773540631963,-343.5042003,4.512e-05,2]
[408386817,1773540632007,-269.08724583,4.512e-05,2]
[408386950,1773540638131,-2415.08880474,4.512e-05,2]
[408386951,1773540638141,-300.0,7.264e-05,2]
[408386952,1773540638151,-420.0,7.99e-05,2]
[408386953,1773540638160,-587.0,8.789e-05,2]
[408386954,1773540638170,-823.0,9.668e-05,2]
[408386955,1773540638179,-1152.0,0.00010635,2]
[408386956,1773540638192,-476.24949459,0.00011,2]
[408386957,1773540638201,-247.0,0.00011375,2]
[408386958,1773540638211,-673.1402493,0.00011376,2]
[408386959,1773540638221,-1613.0,0.00011699,2]
[408386960,1773540638231,-500.0,0.00011927,2]
[408386961,1773540638242,-150.92319954,0.00012,2]
[408386962,1773540638251,-989.71998089,0.00012022,2]
[408386963,1773540638261,-2008.55542845,0.00012122,2]
[408386964,1773540638270,-1502.7025343,0.00012169,2]
[408386965,1773540638279,-2172.22414957,0.00012222,2]
[408386966,1773540638288,-2339.61597774,0.00012322,2]
[408386967,1773540638297,-2507.00780601,0.00012422,2]
[408386968,1773540638306,-2674.39963428,0.00012522,2]
[408386969,1773540638316,-220.124,0.000129,2]
[408386970,1773540638325,-645.72377992,0.000129,2]
[408386971,1773540638334,-2841.79146255,0.00012912,2]
[408386972,1773540638343,-11895.73173943,0.00012928,2]
[408387306,1773540643278,-9736.44224978,0.00012928,2]
[408387308,1773540643287,-150.0,0.00013128,2]
[408387310,1773540643296,-150.051,0.00013128,2]
[408387312,1773540643309,-159.11042101,0.000132,2]
[408387314,1773540643319,-500.0,0.00013533,2]
[408387316,1773540643328,-159.0,0.000136,3]
[408387318,1773540643337,-151.0,0.00013699,2]
[408387320,1773540643346,-151.0,0.00013699,2]
[408387322,1773540643356,-151.0,0.00013699,2]
[408387324,1773540643365,-1000.0,0.00013699,2]
[408387327,1773540643374,-159.0,0.00014,3]
[408387329,1773540643384,-416.00701174,0.00014,2]
[408387331,1773540643393,-194.338356,0.00014081,2]
[408387333,1773540643402,-1000.0,0.00014081,2]
[408387334,1773540643412,-3009.18329082,0.00014231,2]
[408387336,1773540643421,-351.0,0.00014367,2]
[408387338,1773540643431,-351.0,0.00014367,2]
[408387340,1773540643441,-351.0,0.00014367,2]
[408387342,1773540643450,-351.0,0.00014367,2]
[408387344,1773540643459,-351.0,0.00014367,2]
[408387347,1773540643469,-351.0,0.00014367,2]
[408387350,1773540643478,-165.1160394,0.00014367,2]
[408387352,1773540643488,-1522.07013265,0.00014629,2]
[408387354,1773540643497,-120.6814986,0.0001467,2]
[408387356,1773540643509,-380.82265882,0.0001467,2]
[408387358,1773540643518,-500.0,0.00014833,2]
[408387360,1773540643527,-500.0,0.00014833,2]
[408387362,1773540643536,-500.0,0.00014833,2]
[408387364,1773540643545,-252.81121267,0.00014833,2]
[408387366,1773540643555,-486.79041215,0.00014833,2]
[408387368,1773540643567,-13.20958785,0.00014833,2]
[408387370,1773540643576,-193.46797654,0.00014878,2]
[408387372,1773540643585,-645.7237799,0.00014903,2]
[408387374,1773540643594,-11871.93047604,0.00015,2]
[408387376,1773540643603,-4332.12958166,0.00015,90]
[408387379,1773540643618,-722.0,0.00015,90]
[408387618,1773540646074,-734.0,0.00013462,2]
[408387620,1773540646085,-1945.87041834,0.00015,90]
[408387622,1773540646094,-270.83333333,0.00015,2]
[408387624,1773540646104,-159.909762,0.00015,2]
[408387626,1773540646113,-197.371553,0.00015068,2]
[408387628,1773540646122,-500.0,0.000152,2]
[408387630,1773540646131,-2889.26872795,0.00015296,2]
[408387632,1773540646140,-1000.0,0.00015381,2]
[408387634,1773540646149,-567.04213616,0.00015381,2]
[408387636,1773540646158,-1000.0,0.00015381,2]
[408387638,1773540646168,-891.59991539,0.00015381,2]
[408387640,1773540646177,-299.82767133,0.00015479,2]
[408387642,1773540646186,-2129.19745757,0.0001548,2]
[408387645,1773540646208,-812.80254243,0.0001548,2]
[408387647,1773540646217,-12323.0,0.0001548,2]
[408387649,1773540646226,-575.0,0.0001548,2]
[408387650,1773540646235,-3027.39087601,0.0001555,2]
[408387652,1773540646245,-324.8570978,0.0001557,2]
[408387654,1773540646254,-162.380719,0.00015594,2]
[408387656,1773540646263,-500.0,0.00015594,2]
[408387658,1773540646273,-500.0,0.00015594,2]
[408387660,1773540646282,-500.0,0.00015594,2]
[408387662,1773540646291,-500.0,0.00015594,2]
[408387664,1773540646300,-500.0,0.00015594,2]
[408387666,1773540646310,-500.0,0.00015594,2]
[408387668,1773540646319,-500.0,0.00015594,2]
[408387670,1773540646328,-509.83674754,0.00015594,2]
[408387672,1773540646338,-250.0,0.00015594,2]
[408387674,1773540646348,-250.0,0.00015594,2]
[408387676,1773540646357,-250.0,0.00015594,2]
[408387678,1773540646366,-250.0,0.00015594,2]
[408387681,1773540646375,-250.0,0.00015594,2]
[408387682,1773540646387,-250.0,0.00015594,2]
[408387684,1773540646396,-250.0,0.00015594,2]
[408387686,1773540646405,-2150.738,0.00015594,2]
[408387688,1773540646415,-537.6845,0.00015594,2]
[408387690,1773540646424,-250.0,0.00015594,2]
[408387692,1773540646433,-339.12622828,0.00015594,2]
[408387694,1773540646442,-1500.0,0.00015929,2]
[408387697,1773540646451,-1500.0,0.00015929,2]
[408387698,1773540646460,-4175.36811891,0.00015959,2]
[408387700,1773540646469,-25196.67318276,0.00016007,2]
[408388005,1773541838189,-5000.0,7.572e-05,2]
[408388006,1773541838200,-1200.0,7.648e-05,2]
[408388007,1773541838210,-5000.0,7.649e-05,2]
[408388008,1773541838220,-528.0,7.649e-05,2]
[408388009,1773541838230,-200.0,7.89e-05,2]
[408388010,1773541838239,-300.0,7.961e-05,2]
[408388011,1773541838250,-300.0,7.961e-05,2]
[408388012,1773541838259,-300.0,7.961e-05,2]
[408388013,1773541838269,-200.0,8.3e-05,2]
[408388014,1773541838278,-413.0,8.413e-05,2]
[408388015,1773541838287,-585.1301649,8.44e-05,2]
[408388016,1773541838297,-500.0,8.5e-05,2]
[408388017,1773541838306,-1149.17341606,8.54e-05,2]
[408388018,1773541838315,-1713.21666721,8.64e-05,2]
[408388019,1773541838324,-500.0,8.7e-05,2]
[408388020,1773541838333,-227.0,8.757e-05,2]
[408388021,1773541838342,-420.0,8.757e-05,2]
[408388022,1773541838352,-587.95953588,8.8e-05,2]